bitfinex-derivatives/quotes_SOLF0:USTF0_20250829
["timestamp","ask_amount","ask_price","bid_price","bid_amount"]
[1756461337747,0.03153232,207.29,207.24,14.30402969]
[1756461337946,7.75,207.43,207.3,7.1]
[1756461338151,7.75,207.43,207.32,5.31244698]
[1756461338348,7.75,207.43,207.33,7.1]
[1756461339153,7.75,207.43,207.36,7.13384791]
[1756461339354,0.83918108,207.46,207.36,7.13384791]
[1756461339554,7.75,207.47,207.36,12.44629489]
[1756461340058,37.22,207.48,207.39,7.1]
[1756461340250,37.22,207.48,207.41,7.1]
[1756461340451,7.75,207.51,207.41,7.1]
[1756461340753,7.75,207.51,207.42,7.1]
[1756461340956,7.75,207.51,207.42,7.13595864]
[1756461342555,7.17402969,207.47,207.42,0.03595864]
[1756461342947,7.75,207.46,207.42,0.03595864]
[1756461343147,7.17402969,207.44,207.42,0.03595864]
[1756461343357,7.75,207.43,207.42,0.03595864]
[1756461345057,7.75,207.43,207.33,5.31244698]
[1756461346154,0.03220619,207.4,207.33,5.31244698]
[1756461347757,0.03220619,207.4,207.34,14.27402969]
[1756461347956,0.03220619,207.4,207.37,5.31244698]
[1756461348154,0.03220619,207.4,207.38,7.1]
[1756461348464,0.03220619,207.4,207.39,7.1]
[1756461351856,0.83889786,207.52,207.39,7.58]
[1756461352053,7.75,207.53,207.44,7.06]
[1756461353356,7.75,207.53,207.46,0.03261776]
[1756461359358,7.75,207.53,207.47,7.06]
[1756461360365,7.75,207.53,207.46,0.03261776]
[1756461362366,7.75,207.58,207.47,7.06]
[1756461363169,7.75,207.58,207.5,0.03187002]
[1756461377788,7.75,207.58,207.51,7.04]
[1756461382794,7.75,207.58,207.5,0.03187002]
[1756461383991,7.81,207.56,207.5,0.03187002]
[1756461384493,7.81,207.56,207.48,5.31244698]
[1756461384693,7.81,207.56,207.51,0.03365217]
[1756461384892,7.81,207.59,207.51,0.03365217]
[1756461386088,7.17402969,207.57,207.51,0.03365217]
[1756461386390,7.81,207.53,207.47,3.98707614]
[1756461386595,7.81,207.49,207.42,5.31244698]
[1756461386794,7.81,207.49,207.41,12.35244698]
[1756461387595,0.03310914,207.47,207.42,5.31244698]
[1756461387790,0.03310914,207.47,207.43,7.56]
[1756461387996,0.03310914,207.47,207.44,5.31244698]
[1756461388194,0.03310914,207.47,207.45,7.56]
[1756461388499,0.03310914,207.47,207.46,7.56]
[1756461389398,0.03310914,207.47,207.46,12.87244698]
[1756461390302,0.03310914,207.47,207.45,5.31244698]
[1756461390491,0.03310914,207.47,207.46,7.56]
[1756461390690,0.03310914,207.47,207.46,12.87244698]
[1756461391098,0.03310914,207.47,207.46,7.56]
[1756461391399,0.03310914,207.47,207.46,5.32477167]
[1756461391800,0.03310914,207.47,207.45,5.32477167]
[1756461392102,0.03310914,207.47,207.46,5.32477167]
[1756461392299,0.03310914,207.47,207.46,12.88477167]
[1756461393204,0.03310914,207.47,207.46,7.56]
[1756461394700,7.84310914,207.47,207.46,5.3332242]
[1756461394903,7.84310914,207.47,207.45,5.3332242]
[1756461395500,0.03310914,207.47,207.46,12.8932242]
[1756461395697,553.51402969,207.61,207.46,7.96867048]
[1756461395898,7.81,207.6,207.5,12.89445483]
[1756461396205,7.81,207.6,207.52,5.33445483]
[1756461397208,7.81,207.6,207.54,0.03688915]
[1756461400514,14.92402969,207.55,207.54,0.03688915]
[1756461401406,14.92402969,207.55,207.49,5.33445483]
[1756461403412,14.92402969,207.55,207.45,7.85]
[1756461403413,0.03650641,207.57,207.51,5.33445483]
[1756461403609,0.03650641,207.57,207.52,5.33445483]
[1756461403812,7.75,207.57,207.52,13.18445483]
[1756461404308,0.03709906,207.57,207.53,7.85]
[1756461404605,0.03709906,207.57,207.53,13.18445483]
[1756461405911,0.03709906,207.57,207.54,7.85]
[1756461406311,0.03709906,207.57,207.53,5.33445483]
[1756461406615,0.03709906,207.57,207.56,13.18445483]
[1756461407707,0.03709906,207.57,207.56,7.85]
[1756461408513,0.03709906,207.57,207.56,15.81867048]
[1756461408714,0.03709906,207.57,207.56,7.96867048]
[1756461408915,0.03709906,207.57,207.56,5.33708049]
[1756461410918,7.78709906,207.57,207.55,5.33708049]
[1756461411513,0.03709906,207.57,207.55,5.33708049]
[1756461412020,0.03709906,207.57,207.55,13.18708049]
[1756461412209,0.03709906,207.57,207.55,7.85]
[1756461412608,7.78709906,207.57,207.54,5.33708049]
[1756461412807,7.78709906,207.57,207.53,5.33708049]
[1756461413210,0.03709906,207.57,207.54,7.85]
[1756461413417,0.03709906,207.57,207.56,7.85]
[1756461414208,0.03709906,207.57,207.56,13.18708049]
[1756461415216,0.03709906,207.57,207.56,7.85]
[1756461415818,0.03709906,207.57,207.56,13.18708049]
[1756461418622,0.03709906,207.57,207.54,5.33708049]
[1756461418824,0.03709906,207.57,207.54,13.18708049]
[1756461419020,0.03709906,207.57,207.55,7.85]
[1756461420218,0.03709906,207.57,207.54,5.33708049]
[1756461420414,7.75,207.56,207.52,5.33708049]
[1756461420815,7.75,207.55,207.49,5.33708049]
[1756461421020,7.75,207.55,207.48,5.33708049]
[1756461423620,7.17402969,207.53,207.48,5.33708049]
[1756461423825,7.17402969,207.53,207.46,5.33708049]
[1756461424024,7.75,207.52,207.46,5.33708049]
[1756461424521,0.03462833,207.52,207.48,5.33708049]
[1756461424724,0.03462833,207.52,207.51,13.18708049]
[1756461425423,0.03462833,207.52,207.51,7.85]
[1756461425628,7.75,207.63,207.51,8.33]
[1756461425823,7.75,207.63,207.55,13.17342672]
[1756461427125,7.75,207.63,207.57,0.03178062]
[1756461427526,7.8,207.68,207.57,13.28520734]
[1756461427826,7.8,207.68,207.58,5.32342672]
[1756461428026,7.8,207.68,207.57,13.28520734]
[1756461428228,7.8,207.68,207.58,5.32342672]
[1756461428825,7.8,207.68,207.59,7.93]
[1756461429329,7.8,207.68,207.59,13.25342672]
[1756461429528,7.8,207.68,207.61,0.03587101]
[1756461440236,129.6,207.68,207.61,0.03587101]
[1756461441136,7.8,207.68,207.61,7.96587101]
[1756461441334,121.8,207.71,207.61,13.28929773]
[1756461441530,331.5,207.72,207.61,13.28929773]
[1756461441730,7.8,207.72,207.64,7.93]
[1756461441930,7.8,207.72,207.64,13.25342672]
[1756461442130,7.8,207.76,207.67,7.93]
[1756461442740,7.8,207.76,207.69,0.0351831]
[1756461446334,7.8,207.76,207.7,7.93]
[1756461449532,7.8,207.76,207.7,11.89145081]
[1756461450328,7.8,207.76,207.7,7.93]
[1756461451036,7.8,207.76,207.69,0.0351831]
[1756461452540,7.8,207.76,207.69,3.99663391]
[1756461453242,7.8,207.76,207.69,0.0351831]
[1756461454743,7.8,207.83,207.7,7.93]
[1756461454943,7.8,207.83,207.7,11.89145081]
[1756461455143,331.5728068,207.84,207.7,11.89145081]
[1756461455451,7.8,207.83,207.74,0.03202577]
[1756461455644,7.13516087,207.82,207.74,0.03202577]
[1756461455843,7.8,207.81,207.74,0.03202577]
[1756461456349,7.73,207.78,207.74,0.03202577]
[1756461456551,7.13516087,207.79,207.74,0.03202577]
[1756461457243,7.73,207.78,207.74,0.03202577]
[1756461457447,7.13516087,207.79,207.74,0.03202577]
[1756461457642,7.73,207.78,207.74,0.03202577]
[1756461457943,7.13516087,207.79,207.74,0.03202577]
[1756461458347,7.73,207.78,207.74,0.03202577]
[1756461458848,7.13516087,207.79,207.74,0.03202577]
[1756461459855,128.79516087,207.79,207.74,0.03202577]
[1756461460050,7.73,207.75,207.68,3.96145081]
[1756461460255,7.73,207.72,207.65,7.76]
[1756461460655,7.73,207.72,207.63,3.96145081]
[1756461461355,0.0319426,207.7,207.63,3.96145081]
[1756461461549,7.16710347,207.7,207.63,3.96145081]
[1756461461752,7.73,207.69,207.62,11.72145081]
[1756461462255,7.13516087,207.67,207.61,3.96145081]
[1756461462455,7.13516087,207.67,207.6,3.96145081]
[1756461462850,7.13516087,207.68,207.6,3.96145081]
[1756461463252,0.03119885,207.66,207.6,3.96145081]
[1756461466460,7.76119885,207.66,207.61,11.72145081]
[1756461467954,0.03119885,207.66,207.62,7.76]
[1756461468154,7.76119885,207.66,207.62,7.76]
[1756461468356,7.76119885,207.66,207.62,11.72145081]
[1756461469159,0.03119885,207.66,207.63,3.96145081]
[1756461469357,0.03119885,207.66,207.65,7.76]
[1756461469851,0.03119885,207.66,207.65,11.73699761]
[1756461470253,0.03119885,207.66,207.65,7.76]
[1756461470453,7.73,207.75,207.65,8.44867048]
[1756461470657,7.73,207.79,207.7,3.97640622]
[1756461470854,7.73,207.79,207.71,3.97640622]
[1756461471976,7.73,207.79,207.73,0.035372]
[1756461480269,7.73,207.79,207.69,7.76]
[1756461480270,7.73,207.74,207.69,3.97640622]
[1756461480468,7.13516087,207.72,207.67,3.97640622]
[1756461480771,7.13516087,207.72,207.66,3.97640622]
[1756461480972,7.73,207.71,207.66,3.97640622]
[1756461481174,7.73,207.71,207.67,3.97640622]
[1756461481773,7.73,207.7,207.66,3.97640622]
[1756461481973,0.03448897,207.71,207.66,3.97640622]
[1756461482174,0.03448897,207.71,207.68,3.97640622]
[1756461482376,0.03448897,207.71,207.7,7.76]
[1756461482673,7.73,207.79,207.7,7.76]
[1756461482974,0.03658063,207.73,207.71,3.99449196]
[1756461483175,0.03658063,207.73,207.71,11.75449196]
[1756461483376,0.03658063,207.73,207.72,3.99449196]
[1756461483570,0.03658063,207.73,207.71,11.75449196]
[1756461483768,0.03658063,207.73,207.72,11.75449196]
[1756461484271,0.03658063,207.73,207.72,7.76]
[1756461484475,0.03658063,207.73,207.72,11.75406318]
[1756461485278,0.03658063,207.73,207.72,7.76]
[1756461486476,0.03658063,207.73,207.7,5.30187497]
[1756461486774,0.03658063,207.73,207.71,7.48]
[1756461487279,0.03658063,207.73,207.7,5.30187497]
[1756461487475,7.44658063,207.73,207.71,3.99750095]
[1756461487675,7.44658063,207.73,207.72,3.99750095]
[1756461488177,0.03658063,207.73,207.72,3.99750095]
[1756461489179,0.03658063,207.73,207.7,5.30187497]
[1756461489377,0.03658063,207.73,207.71,7.48]
[1756461490479,0.03658063,207.73,207.7,12.78187497]
[1756461490685,7.44658063,207.73,207.72,3.99874162]
[1756461491676,7.41,207.72,207.7,3.99874162]
[1756461491881,7.41,207.72,207.69,3.99874162]
[1756461492182,7.41,207.7,207.67,3.99874162]
[1756461492384,7.13516087,207.71,207.67,3.99874162]
[1756461492580,7.41,207.7,207.67,3.99874162]
[1756461492777,7.13516087,207.71,207.66,3.99874162]
[1756461493378,7.13516087,207.71,207.65,3.99874162]
[1756461493577,7.16956772,207.71,207.65,3.99874162]
[1756461493772,7.41,207.7,207.65,3.99874162]
[1756461494079,7.16956772,207.71,207.65,3.99874162]
[1756461494381,7.41,207.7,207.65,3.99874162]
[1756461494585,7.16956772,207.71,207.65,3.99874162]
[1756461495374,7.41,207.7,207.65,3.99874162]
[1756461496080,7.16956772,207.71,207.65,3.99874162]
[1756461496486,14.57956772,207.71,207.65,3.99874162]
[1756461496680,7.13516087,207.68,207.65,3.99874162]
[1756461497379,14.54516087,207.68,207.65,3.99874162]
[1756461498081,7.41,207.67,207.65,3.99874162]
[1756461498278,7.41,207.67,207.64,3.99874162]
[1756461499486,14.54516087,207.67,207.64,3.99874162]
[1756461499884,0.0348687,207.68,207.64,3.99874162]
[1756461500089,0.0348687,207.68,207.67,7.48]
[1756461500288,0.0348687,207.68,207.67,12.78187497]
[1756461500481,14.54516087,207.77,207.67,12.78187497]
[1756461500683,14.54516087,207.77,207.7,3.99204968]
[1756461500980,14.54516087,207.77,207.7,3.99207862]
[1756461501287,0.03336452,207.76,207.7,3.99207862]
[1756461501487,0.03336452,207.76,207.7,11.47207862]
[1756461502989,0.03336452,207.76,207.72,3.99207862]
[1756461503789,7.44336452,207.76,207.72,3.99207862]
[1756461505689,7.44336452,207.76,207.72,11.47207862]
[1756461505889,0.03336452,207.76,207.73,7.48]
[1756461507298,0.03336452,207.76,207.73,11.47207862]
[1756461509492,0.03336452,207.76,207.74,3.99207862]
[1756461513098,0.03336452,207.76,207.73,11.47207862]
[1756461513299,0.03336452,207.76,207.74,3.99207862]
[1756461514100,0.03336452,207.76,207.74,11.47207862]
[1756461517001,0.03336452,207.76,207.74,3.99207862]
[1756461517204,0.03336452,207.76,207.75,7.61]
[1756461526410,7.44,207.75,207.72,3.98694087]
[1756461526614,7.44,207.75,207.71,3.98694087]
[1756461526808,7.44,207.75,207.71,11.59694087]
[1756461528215,7.44,207.75,207.72,3.98694087]
[1756461528409,7.44,207.75,207.71,11.59694087]
[1756461528916,121.39336452,207.76,207.71,3.98694087]
[1756461528917,7.44,207.73,207.71,3.98694087]
[1756461529410,121.34,207.75,207.72,11.59694087]
[1756461529715,7.44,207.72,207.69,3.99003343]
[1756461529917,14.57516087,207.73,207.69,7.61]
[1756461530117,14.60776529,207.73,207.69,7.61]
[1756461532720,0.03260442,207.73,207.66,12.91187497]
[1756461532919,0.03260442,207.73,207.7,5.30187497]
[1756461533119,44.6,207.8,207.72,7.61]
[1756461533516,0.03461704,207.74,207.72,7.61]
[1756461534520,0.03461704,207.74,207.73,7.61]
[1756461540324,0.03461704,207.74,207.73,12.91187497]
[1756461541521,64.71516087,207.85,207.74,7.61]
[1756461541825,64.71516087,207.85,207.76,7.61]
[1756461542528,14.57516087,207.85,207.76,7.61]
[1756461542721,14.57516087,207.85,207.78,0.03456291]
[1756461547125,7.44,207.85,207.79,7.88]
[1756461547329,0.83754513,207.88,207.79,7.88]
[1756461549630,7.56,207.89,207.79,7.88]
[1756461549826,7.56,207.89,207.8,7.88]
[1756461550631,7.56,207.89,207.82,0.03048438]
[1756461555936,7.56,207.87,207.82,0.03048438]
[1756461556139,121.16,207.86,207.82,0.03048438]
[1756461556939,7.56,207.85,207.82,0.03048438]
[1756461557136,121.16,207.86,207.82,0.03048438]
[1756461557735,7.56,207.85,207.82,0.03048438]
[1756461557936,121.16,207.86,207.82,0.03048438]
[1756461558238,7.56,207.85,207.82,0.03048438]
[1756461558636,121.16,207.86,207.82,0.03048438]
[1756461558835,7.56,207.85,207.82,0.03048438]
[1756461559043,121.16,207.86,207.82,0.03048438]
[1756461559737,7.56,207.85,207.82,0.03048438]
[1756461559938,121.16,207.86,207.82,0.03048438]
[1756461560635,7.56,207.85,207.82,0.03048438]
[1756461560831,121.16,207.86,207.82,0.03048438]
[1756461561436,7.56,207.85,207.82,0.03048438]
[1756461561640,121.16,207.86,207.82,0.03048438]
[1756461561842,121.12,207.85,207.82,0.03048438]
[1756461562442,121.12,207.84,207.82,0.03048438]
[1756461562643,7.56,207.83,207.82,0.03048438]
[1756461569343,128.64,207.83,207.82,0.03048438]
[1756461569943,7.56,207.89,207.82,0.03048438]
[1756461570145,121.08,207.88,207.82,0.03048438]
[1756461570648,7.56,207.87,207.82,0.03048438]
[1756461570846,121.08,207.88,207.82,0.03048438]
[1756461571048,7.56,207.87,207.82,0.03048438]
[1756461571248,121.08,207.88,207.82,0.03048438]
[1756461571844,7.56,207.87,207.82,0.03048438]
[1756461572040,121.08,207.88,207.82,0.03048438]
[1756461572449,7.56,207.87,207.82,0.03048438]
[1756461573553,14.69516087,207.87,207.82,0.03048438]
[1756461574652,7.56,207.87,207.82,0.03048438]
[1756461576547,7.13516087,207.85,207.82,0.03048438]
[1756461576755,128.52,207.84,207.73,5.31708856]
[1756461576946,7.13516087,207.82,207.72,12.54708856]
[1756461577150,7.5,207.81,207.72,12.54708856]
[1756461577355,7.5,207.79,207.73,5.31708856]
[1756461578151,0.03066272,207.78,207.73,5.31708856]
[1756461578346,7.5,207.77,207.73,12.54708856]
[1756461578554,7.5,207.77,207.74,7.23]
[1756461578754,0.03066272,207.78,207.73,5.31708856]
[1756461579256,0.03066272,207.78,207.74,7.23]
[1756461579451,0.03066272,207.78,207.73,5.31708856]
[1756461579656,0.03066272,207.78,207.74,7.23]
[1756461579958,0.03066272,207.78,207.74,5.31708856]
[1756461580158,0.03066272,207.78,207.75,7.23]
[1756461580852,0.03066272,207.78,207.74,5.31708856]
[1756461581157,0.03066272,207.78,207.75,7.23]
[1756461582955,0.03066272,207.78,207.74,5.31708856]
[1756461583156,0.03066272,207.78,207.75,7.23]
[1756461583760,0.03066272,207.78,207.75,5.31708856]
[1756461583961,0.03066272,207.78,207.76,7.23]
[1756461584455,0.03066272,207.78,207.75,5.31708856]
[1756461585258,0.03066272,207.78,207.76,7.23]
[1756461585657,0.03066272,207.78,207.76,12.54708856]
[1756461585857,0.03066272,207.78,207.77,7.23]
[1756461586857,7.5,207.77,207.75,5.31708856]
[1756461587060,7.5,207.77,207.74,5.31708856]
[1756461587263,7.5,207.77,207.73,12.54708856]
[1756461588873,0.03066272,207.78,207.73,5.31708856]
[1756461589070,0.03066272,207.78,207.74,7.23]
[1756461589272,0.03066272,207.78,207.73,5.31708856]
[1756461589571,7.53066272,207.78,207.74,7.23]
[1756461589768,7.53066272,207.78,207.76,3.98223049]
[1756461590171,0.03066272,207.78,207.76,3.98223049]
[1756461590372,7.5,207.77,207.76,3.98223049]
[1756461591472,0.03066272,207.78,207.76,3.98223049]
[1756461592271,7.53066272,207.78,207.76,3.98223049]
[1756461593271,0.03066272,207.78,207.76,3.98223049]
[1756461593475,7.53066272,207.78,207.76,3.98223049]
[1756461593775,7.5,207.76,207.72,3.98223049]
[1756461593971,7.5,207.72,207.69,3.98223049]
[1756461594274,7.13516087,207.73,207.69,7.23]
[1756461594471,120.94,207.75,207.69,7.23]
[1756461594867,7.5,207.72,207.68,3.98223049]
[1756461595374,7.53624385,207.73,207.67,3.98223049]
[1756461595975,14.67140472,207.73,207.67,3.98223049]
[1756461597576,7.53624385,207.73,207.67,3.98223049]
[1756461599171,7.53624385,207.73,207.66,3.98223049]
[1756461600379,7.5,207.67,207.65,3.98223049]
[1756461600572,14.63516087,207.71,207.65,3.98223049]
[1756461601076,0.03290417,207.7,207.65,3.98223049]
[1756461601274,7.5,207.69,207.65,3.98223049]
[1756461601470,7.5,207.69,207.64,3.98223049]
[1756461601669,7.5,207.66,207.59,3.98223049]
[1756461601868,120.92,207.68,207.59,3.98223049]
[1756461601869,7.5,207.62,207.59,3.98223049]
[1756461602170,14.63516087,207.63,207.57,11.21223049]
[1756461602375,14.63516087,207.63,207.57,7.23]
[1756461602682,14.6655879,207.63,207.57,7.23]
[1756461602871,14.6655879,207.63,207.56,3.98223049]
[1756461603275,14.6655879,207.63,207.55,3.98223049]
[1756461603770,7.13516087,207.6,207.55,3.98223049]
[1756461603975,7.13516087,207.6,207.54,3.98223049]
[1756461604176,7.5,207.59,207.53,3.98223049]
[1756461604375,7.5,207.59,207.51,3.98223049]
[1756461604576,7.13516087,207.54,207.5,3.98223049]
[1756461604776,14.63516087,207.54,207.47,3.98223049]
[1756461604979,14.63516087,207.54,207.45,11.21223049]
[1756461605180,7.5,207.54,207.46,11.21223049]
[1756461605380,36.32,207.6,207.46,11.11739136]
[1756461605381,10.38,207.58,207.46,11.11739136]
[1756461605580,7.5,207.6,207.46,11.11739136]
[1756461605581,7.5,207.6,207.49,7.23]
[1756461605780,0.03168743,207.52,207.48,3.98223049]
[1756461606176,7.5,207.6,207.49,7.23]
[1756461606576,0.03056232,207.52,207.5,7.83]
[1756461606777,7.5,207.6,207.5,7.83]
[1756461607183,0.03287813,207.53,207.49,7.83]
[1756461607382,0.03287813,207.53,207.48,7.83]
[1756461607577,0.03287813,207.53,207.47,65.98223049]
[1756461607784,0.03287813,207.53,207.48,7.83]
[1756461607985,0.03287813,207.53,207.47,62.0]
[1756461608588,0.03287813,207.53,207.46,14.96516087]
[1756461608881,0.03287813,207.53,207.47,7.83]
[1756461609277,0.03287813,207.53,207.48,7.83]
[1756461609483,0.03287813,207.53,207.46,11.11739136]
[1756461609786,0.03287813,207.53,207.47,7.83]
[1756461609987,0.03287813,207.53,207.52,14.96516087]
[1756461610183,0.03287813,207.53,207.52,15.44516087]
[1756461611184,0.03287813,207.53,207.52,8.31]
[1756461611485,0.03287813,207.53,207.5,7.13516087]
[1756461611486,0.03287813,207.53,207.5,7.83]
[1756461611881,0.03287813,207.53,207.5,7.13516087]
[1756461612282,0.03287813,207.53,207.51,7.83]
[1756461612682,0.03287813,207.53,207.49,7.83]
[1756461612886,0.03287813,207.53,207.47,7.83]
[1756461624895,7.78287813,207.53,207.47,7.83]
[1756461625103,7.78287813,207.53,207.42,7.83]
[1756461627200,7.13516087,207.51,207.42,7.83]
[1756461627503,7.75,207.5,207.42,7.83]
[1756461628007,0.0345248,207.48,207.42,7.83]
[1756461628907,7.75,207.47,207.38,7.83]
[1756461629201,7.75,207.47,207.39,7.83]
[1756461629701,0.0318135,207.45,207.39,7.83]
[1756461631201,0.0318135,207.45,207.38,3.94862071]
[1756461631504,0.0318135,207.45,207.4,7.83]
[1756461631702,0.0318135,207.45,207.38,7.83]
[1756461632203,0.0318135,207.45,207.38,11.77862071]
[1756461632408,0.0318135,207.45,207.38,7.83]
[1756461632702,0.0318135,207.45,207.39,7.83]
[1756461633504,0.0318135,207.45,207.44,7.83]
[1756461633893,0.0318135,207.45,207.44,8.31]
[1756461634101,0.0318135,207.45,207.44,70.31]
[1756461634498,0.0318135,207.45,207.44,69.83]
[1756461635398,7.75,207.67,207.45,7.83]
[1756461635600,14.88516087,207.67,207.54,7.83]
[1756461636906,14.88516087,207.67,207.58,0.03080136]
[1756461637202,323.78,207.75,207.63,7.33]
[1756461637203,7.59,207.72,207.63,7.33]
[1756461638104,323.78,207.75,207.66,7.33]
[1756461638705,7.59,207.74,207.66,7.33]
[1756461638896,7.59,207.74,207.65,0.03439839]
[1756461639299,14.72516087,207.74,207.65,0.03439839]
[1756461640404,7.59,207.74,207.65,7.36439839]
[1756461641401,7.59,207.78,207.65,7.16955926]
[1756461641701,7.59,207.78,207.68,7.33]
[1756461641903,7.59,207.78,207.68,11.28172077]
[1756461642103,7.59,207.78,207.71,0.0332468]
[1756461642799,7.59,207.78,207.71,7.3632468]
[1756461646106,36.16,207.79,207.71,7.3632468]
[1756461646302,7.13516087,207.76,207.71,0.0332468]
[1756461646508,7.59,207.75,207.71,0.0332468]
[1756461646707,7.13516087,207.76,207.71,0.0332468]
[1756461647104,7.59,207.75,207.71,0.0332468]
[1756461647504,7.13516087,207.76,207.71,0.0332468]
[1756461648106,7.59,207.75,207.71,0.0332468]
[1756461648308,7.59,207.8,207.71,0.0332468]
[1756461648812,7.59,207.8,207.7,7.33]
[1756461649002,7.59,207.8,207.73,0.03342106]
[1756461650808,7.59,207.8,207.73,7.36342106]
[1756461654712,7.59,207.8,207.73,0.03342106]
[1756461655114,7.59,207.8,207.73,7.36342106]
[1756461657220,14.72516087,207.8,207.73,0.03342106]
[1756461657414,7.59,207.8,207.73,0.03342106]
[1756461657615,14.72516087,207.8,207.73,0.03342106]
[1756461658819,7.59,207.8,207.73,0.03342106]
[1756461661721,7.59,207.8,207.73,7.36342106]
[1756461661916,7.59,207.86,207.73,7.36342106]
[1756461662425,7.59,207.86,207.73,7.33]
[1756461662621,7.59,207.86,207.77,11.6940002]
[1756461664119,7.59,207.86,207.78,4.331]
[1756461665927,7.59,207.86,207.79,4.3308]
[1756461666721,323.68,207.87,207.77,7.3628002]
[1756461666722,14.60516087,207.94,207.8,7.55]
[1756461666923,86.42,207.93,207.8,7.55]
[1756461667117,7.47,207.92,207.8,7.55]
[1756461667427,7.47,207.92,207.84,0.03144369]
[1756461668528,7.47,207.92,207.85,7.55]
[1756461668726,57.65516087,207.97,207.85,14.68516087]
[1756461668928,7.47,207.96,207.86,7.55]
[1756461669429,7.47,207.96,207.89,0.03235412]
[1756461670526,330.49516087,208.0,207.9,7.55]
[1756461670527,7.47,207.99,207.9,7.55]
[1756461672131,330.49516087,208.0,207.89,0.03235412]
[1756461672132,7.13516087,207.96,207.89,0.03235412]
[1756461672325,7.47,207.95,207.89,0.03235412]
[1756461678229,7.47,207.93,207.89,0.03235412]
[1756461678534,120.52,207.96,207.89,0.03235412]
[1756461678535,7.47,207.9,207.89,0.03235412]
[1756461678731,7.47,207.86,207.75,3.95172077]
[1756461678930,7.47,207.86,207.73,11.50172077]
[1756461679229,7.47,207.86,207.77,7.55]
[1756461679431,7.47,207.86,207.77,11.50172077]
[1756461679632,7.47,207.86,207.77,7.55]
[1756461680027,0.03611812,207.84,207.77,7.55]
[1756461680334,0.03611812,207.84,207.77,11.50172077]
[1756461681632,0.03611812,207.84,207.78,3.95172077]
[1756461682430,0.03611812,207.84,207.79,3.95172077]
[1756461682631,0.03611812,207.84,207.8,7.55]
[1756461683235,0.03611812,207.84,207.79,3.95172077]
[1756461683428,0.03611812,207.84,207.8,7.55]
[1756461684033,0.03611812,207.84,207.83,11.50172077]
[1756461684435,0.03611812,207.84,207.83,7.55]
[1756461684736,0.03611812,207.84,207.83,11.8801]
[1756461684938,0.03611812,207.84,207.83,12.3601]
[1756461685533,0.03611812,207.84,207.83,17.67718856]
[1756461686237,7.47,207.93,207.87,4.3292]
[1756461686635,7.47,207.99,207.88,7.55]
[1756461686842,7.47,207.99,207.88,11.51043797]
[1756461687435,7.47,207.99,207.91,0.0370107]
[1756461689543,7.47,207.99,207.91,7.5870107]
[1756461690238,193.63209584,208.03,207.92,7.13516087]
[1756461690641,193.63209584,208.03,207.92,11.46336087]
[1756461690840,193.63209584,208.03,207.91,7.55]
[1756461691042,200.76725671,208.03,207.95,0.03600673]
[1756461691240,193.63209584,208.03,207.95,0.03600673]
[1756461691636,7.47,208.0,207.95,0.03600673]
[1756461692647,7.13516087,208.01,207.95,0.03600673]
[1756461693153,7.47,208.0,207.95,0.03600673]
[1756461693537,7.13516087,208.01,207.95,0.03600673]
[1756461694150,7.47,208.0,207.95,0.03600673]
[1756461694446,7.13516087,208.01,207.95,0.03600673]
[1756461694842,7.47,208.0,207.95,0.03600673]
[1756461695046,7.13516087,208.01,207.95,0.03600673]
[1756461695343,7.47,208.0,207.95,0.03600673]
[1756461695545,7.13516087,208.01,207.95,0.03600673]
[1756461695746,7.47,208.02,207.95,0.03600673]
[1756461697542,7.13516087,208.01,207.95,0.03600673]
[1756461697851,14.35516087,208.01,207.95,0.03600673]
[1756461698147,7.22,208.01,207.95,0.03600673]
[1756461700651,7.22,208.01,207.95,7.26600673]
[1756461700847,7.22,208.01,207.95,11.2264447]
[1756461701446,7.22,208.13,207.98,7.23]
[1756461701650,7.13516087,208.08,207.96,3.96043797]
[1756461701852,42.74,208.07,207.98,3.96043797]